Workbook

Sheet Oculto creexo (hidden)
A1: Solow | L1: Solow
A2: Unidades | B2: ponderador | C2: k | D2: S/N | E2: (n+d)k | F2: Dk | G2: k Line | I2: sYpn Line | L2: Unidades | M2: ponderador | N2: k | O2: S/N | P2: (n+d)k | Q2: Dk | R2: k Line | T2: sYpn Line
A3: 0 | B3: 0 | C3: =B3*$D$30 -> 0 | D3: =$B$33*($B$30)*(C3^($F$30)) -> 0 | E3: =($A$36+$C$36)*C3 -> 0 | F3: =D3-E3 -> 0 | G3: =C$13 -> 8,789.06 | H3: =I3*($A3/$A$23) -> 0 | I3: =D$13 -> 1,054.69 | J3: =G3*$A3/$A$23 -> 0 | L3: 0 | M3: 0 | N3: =M3*$O$30 -> 0 | O3: =$M$33*($M$30)*(N3^($Q$30)) -> 0 | P3: =($L$36+$N$36)*N3 -> 0 | Q3: =O3-P3 -> 0 | R3: =N$13 -> 8,789.06 | S3: =T3*($A3/$A$23) -> 0 | T3: =O$13 -> 1,054.69 | U3: =R3*$A3/$A$23 -> 0
A4: 1 | B4: 0.10 | C4: =B4*$D$30 -> 878.91 | D4: =$B$33*($B$30)*(C4^($F$30)) -> 333.52 | E4: =($A$36+$C$36)*C4 -> 105.47 | F4: =D4-E4 -> 228.05 | G4: =C$13 -> 8,789.06 | H4: 52.73 | I4: =D$13 -> 1,054.69 | J4: 439.45 | L4: 1 | M4: 0.10 | N4: 878.91 | O4: 333.52 | P4: =($L$36+$N$36)*N4 -> 105.47 | Q4: =O4-P4 -> 228.05 | R4: =N$13 -> 8,789.06 | S4: =T4*($A4/$A$23) -> 52.73 | T4: =O$13 -> 1,054.69 | U4: =R4*$A4/$A$23 -> 439.45
A5: 2 | B5: 0.20 | C5: 1,757.81 | D5: 471.67 | E5: 210.94 | F5: 260.73 | G5: 8,789.06 | H5: 105.47 | I5: 1,054.69 | J5: 878.91 | L5: 2 | M5: 0.20 | N5: 1,757.81 | O5: 471.67 | P5: 210.94 | Q5: 260.73 | R5: 8,789.06 | S5: 105.47 | T5: 1,054.69 | U5: 878.91
A6: 3 | B6: 0.30 | C6: 2,636.72 | D6: 577.68 | E6: 316.41 | F6: 261.27 | G6: 8,789.06 | H6: 158.20 | I6: 1,054.69 | J6: 1,318.36 | L6: 3 | M6: 0.30 | N6: 2,636.72 | O6: 577.68 | P6: 316.41 | Q6: 261.27 | R6: 8,789.06 | S6: 158.20 | T6: 1,054.69 | U6: 1,318.36
A7: 4 | B7: 0.40 | C7: 3,515.62 | D7: 667.04 | E7: 421.87 | F7: 245.17 | G7: 8,789.06 | H7: 210.94 | I7: 1,054.69 | J7: 1,757.81 | L7: 4 | M7: 0.40 | N7: 3,515.62 | O7: 667.04 | P7: 421.87 | Q7: 245.17 | R7: 8,789.06 | S7: 210.94 | T7: 1,054.69 | U7: 1,757.81
A8: 5 | B8: 0.50 | C8: 4,394.53 | D8: 745.78 | E8: 527.34 | F8: 218.43 | G8: 8,789.06 | H8: 263.67 | I8: 1,054.69 | J8: 2,197.26 | L8: 5 | M8: 0.50 | N8: 4,394.53 | O8: 745.78 | P8: 527.34 | Q8: 218.43 | R8: 8,789.06 | S8: 263.67 | T8: 1,054.69 | U8: 2,197.26
A9: 6 | B9: 0.60 | C9: 5,273.43 | D9: 816.96 | E9: 632.81 | F9: 184.15 | G9: 8,789.06 | H9: 316.41 | I9: 1,054.69 | J9: 2,636.72 | L9: 6 | M9: 0.60 | N9: 5,273.43 | O9: 816.96 | P9: 632.81 | Q9: 184.15 | R9: 8,789.06 | S9: 316.41 | T9: 1,054.69 | U9: 2,636.72
A10: 7 | B10: 0.70 | C10: 6,152.34 | D10: 882.41 | E10: 738.28 | F10: 144.13 | G10: 8,789.06 | H10: 369.14 | I10: 1,054.69 | J10: 3,076.17 | L10: 7 | M10: 0.70 | N10: 6,152.34 | O10: 882.41 | P10: 738.28 | Q10: 144.13 | R10: 8,789.06 | S10: 369.14 | T10: 1,054.69 | U10: 3,076.17
A11: 8 | B11: 0.80 | C11: 7,031.25 | D11: 943.34 | E11: 843.75 | F11: 99.59 | G11: 8,789.06 | H11: 421.87 | I11: 1,054.69 | J11: 3,515.62 | L11: 8 | M11: 0.80 | N11: 7,031.25 | O11: 943.34 | P11: 843.75 | Q11: 99.59 | R11: 8,789.06 | S11: 421.87 | T11: 1,054.69 | U11: 3,515.62
A12: 9 | B12: 0.90 | C12: 7,910.15 | D12: 1,000.56 | E12: 949.22 | F12: 51.35 | G12: 8,789.06 | H12: 474.61 | I12: 1,054.69 | J12: 3,955.08 | L12: 9 | M12: 0.90 | N12: 7,910.15 | O12: 1,000.56 | P12: 949.22 | Q12: 51.35 | R12: 8,789.06 | S12: 474.61 | T12: 1,054.69 | U12: 3,955.08
A13: 10 | B13: 1.00 | C13: 8,789.06 | D13: 1,054.69 | E13: 1,054.69 | F13: 0.00 | G13: 8,789.06 | H13: 527.34 | I13: 1,054.69 | J13: 4,394.53 | L13: 10 | M13: 1.00 | N13: =M13*$O$30 -> 8,789.06 | O13: =$M$33*($M$30)*(N13^($Q$30)) -> 1,054.69 | P13: 1,054.69 | Q13: 0.00 | R13: 8,789.06 | S13: 527.34 | T13: 1,054.69 | U13: 4,394.53
A14: 11 | B14: 1.10 | C14: 9,667.96 | D14: 1,106.17 | E14: 1,160.16 | F14: (53.99) | G14: 8,789.06 | H14: 580.08 | I14: 1,054.69 | J14: 4,833.98 | L14: 11 | M14: 1.10 | N14: =M14*$O$30 -> 9,667.96 | O14: =$M$33*($M$30)*(N14^($Q$30)) -> 1,106.17 | P14: 1,160.16 | Q14: (53.99) | R14: 8,789.06 | S14: 580.08 | T14: 1,054.69 | U14: 4,833.98
A15: 12 | B15: 1.20 | C15: 10,546.87 | D15: 1,155.35 | E15: 1,265.62 | F15: (110.27) | G15: 8,789.06 | H15: 632.81 | I15: 1,054.69 | J15: 5,273.43 | L15: 12 | M15: 1.20 | N15: 10,546.87 | O15: 1,155.35 | P15: 1,265.62 | Q15: (110.27) | R15: 8,789.06 | S15: 632.81 | T15: 1,054.69 | U15: 5,273.43
A16: 13 | B16: 1.30 | C16: 11,425.77 | D16: 1,202.53 | E16: 1,371.09 | F16: (168.56) | G16: 8,789.06 | H16: 685.55 | I16: 1,054.69 | J16: 5,712.89 | L16: 13 | M16: 1.30 | N16: 11,425.77 | O16: 1,202.53 | P16: 1,371.09 | Q16: (168.56) | R16: 8,789.06 | S16: 685.55 | T16: 1,054.69 | U16: 5,712.89
A17: 14 | B17: 1.40 | C17: 12,304.68 | D17: 1,247.92 | E17: 1,476.56 | F17: (228.64) | G17: 8,789.06 | H17: 738.28 | I17: 1,054.69 | J17: 6,152.34 | L17: 14 | M17: 1.40 | N17: 12,304.68 | O17: 1,247.92 | P17: 1,476.56 | Q17: (228.64) | R17: 8,789.06 | S17: 738.28 | T17: 1,054.69 | U17: 6,152.34
A18: 15 | B18: 1.50 | C18: 13,183.59 | D18: 1,291.72 | E18: 1,582.03 | F18: (290.31) | G18: 8,789.06 | H18: 791.02 | I18: 1,054.69 | J18: 6,591.79 | L18: 15 | M18: 1.50 | N18: 13,183.59 | O18: 1,291.72 | P18: 1,582.03 | Q18: (290.31) | R18: 8,789.06 | S18: 791.02 | T18: 1,054.69 | U18: 6,591.79
A19: 16 | B19: 1.60 | C19: 14,062.49 | D19: 1,334.09 | E19: 1,687.50 | F19: (353.41) | G19: 8,789.06 | H19: 843.75 | I19: 1,054.69 | J19: 7,031.25 | L19: 16 | M19: 1.60 | N19: 14,062.49 | O19: 1,334.09 | P19: 1,687.50 | Q19: (353.41) | R19: 8,789.06 | S19: 843.75 | T19: 1,054.69 | U19: 7,031.25
A20: 17 | B20: 1.70 | C20: 14,941.40 | D20: 1,375.14 | E20: 1,792.97 | F20: (417.82) | G20: 8,789.06 | H20: 896.48 | I20: 1,054.69 | J20: 7,470.70 | L20: 17 | M20: 1.70 | N20: 14,941.40 | O20: 1,375.14 | P20: 1,792.97 | Q20: (417.82) | R20: 8,789.06 | S20: 896.48 | T20: 1,054.69 | U20: 7,470.70
A21: 18 | B21: 1.80 | C21: 15,820.30 | D21: 1,415.01 | E21: 1,898.44 | F21: (483.43) | G21: 8,789.06 | H21: 949.22 | I21: 1,054.69 | J21: 7,910.15 | L21: 18 | M21: 1.80 | N21: 15,820.30 | O21: 1,415.01 | P21: 1,898.44 | Q21: (483.43) | R21: 8,789.06 | S21: 949.22 | T21: 1,054.69 | U21: 7,910.15
A22: 19 | B22: 1.90 | C22: 16,699.21 | D22: 1,453.79 | E22: 2,003.91 | F22: (550.12) | G22: 8,789.06 | H22: 1,001.95 | I22: 1,054.69 | J22: 8,349.60 | L22: 19 | M22: 1.90 | N22: 16,699.21 | O22: 1,453.79 | P22: 2,003.91 | Q22: (550.12) | R22: 8,789.06 | S22: 1,001.95 | T22: 1,054.69 | U22: 8,349.60
A23: 20 | B23: 2.00 | C23: 17,578.12 | D23: 1,491.55 | E23: 2,109.37 | F23: (617.82) | G23: 8,789.06 | H23: 1,054.69 | I23: 1,054.69 | J23: 8,789.06 | L23: 20 | M23: 2.00 | N23: 17,578.12 | O23: 1,491.55 | P23: 2,109.37 | Q23: (617.82) | R23: 8,789.06 | S23: 1,054.69 | T23: 1,054.69 | U23: 8,789.06
A26: Y | B26: A | C26: N | D26: K | E26: a | F26: b | L26: Y | M26: A | N26: N | O26: K | P26: a | Q26: b
A27: =B27*C27^(E27)*D27^(F27) -> 421,875 | B27: =B30 -> 45 | C27: =Solow!D10 -> 100.00 | D27: =D30*C27 -> 878,906 | E27: =E30 -> 0.5 | F27: =F30 -> 0.5 | L27: =Solow!I24 -> 421,875 | M27: =Solow!J24 -> 45 | N27: =Solow!K24 -> 100.00 | O27: =Solow!L24 -> 878,906 | P27: =Solow!M24 -> 0.5 | Q27: =Solow!N24 -> 0.5
A28: INGRESO POR TRABAJADOR EMPLEADO | L28: INGRESO POR TRABAJADOR EMPLEADO
A29: Y pc | B29: A | C29: N/N | D29: k | E29: a | F29: b | L29: Y pc | M29: A | N29: N/N | O29: k | P29: a | Q29: b
A30: =B30*C30^(E30)*D30^(F30) -> 4,219 | B30: =Solow!C14 -> 45 | C30: =Solow!D14 -> 1.00 | D30: =Solow!E14 -> 8,789.1 | E30: =Solow!F14 -> 0.5 | F30: =Solow!G14 -> 0.5 | L30: =Solow!I27 -> 4,219 | M30: =Solow!J27 -> 45 | N30: =Solow!K27 -> 1.00 | O30: =Solow!L27 -> 8,789.1 | P30: =Solow!M27 -> 0.5 | Q30: =Solow!N27 -> 0.5
A31: AHORRO POR TRABAJDO EMPLEADO | C31: Inserte los datos correspondientes | L31: AHORRO POR TRABAJDO EMPLEADO | N31: Inserte los datos correspondientes
A32: Spc | B32: s0 | C32: Ypc | L32: Spc | M32: s0 | N32: Ypc
A33: =B33*C33 -> 1,055 | B33: =Solow!C19 -> 0.3 | C33: =A30 -> 4,219 | L33: =Solow!I30 -> 1,055 | M33: =Solow!J30 -> 0.3 | N33: =Solow!K30 -> 4,219
A34: DEPRECIACIÓN Y CRECIMIENTO POBLACIONAL | L34: DEPRECIACIÓN Y CRECIMIENTO POBLACIONAL
A35: delta | B35: d | C35: eta | D35: nk | L35: delta | M35: dk | N35: eta | O35: nk
A36: =Solow!B23 -> 0.10 | B36: =Solow!C23 -> 878.91 | C36: =Solow!D23 -> 0.02 | D36: =Solow!E23 -> 175.78 | L36: =Solow!I33 -> 0.10 | M36: =Solow!J33 -> 878.91 | N36: =Solow!K33 -> 0.02 | O36: =Solow!L33 -> 175.78
A37: ESTADO ESTACIONARIO | L37: ESTADO ESTACIONARIO
A38: Dk | B38: sYpc | C38: k(d+n) | L38: Dk | M38: sYpc | N38: k(d+n)
A39: =B39-C39 -> 0.00 | B39: =Solow!C27 -> 1,054.69 | C39: =Solow!D27 -> 1054.69 | L39: =Solow!I36 -> 0.00 | M39: =Solow!J36 -> 1,054.69 | N39: =Solow!K36 -> 1054.69
L42: POLÍTICA ECONÓMICA
L43: MONETARIA | M43: FISCAL | O43: EXOGENO
L44: s0 | M44: d0 | N44: n | O44: A | P44: N | Q44: K
L45: =Solow!I42 -> 0 | M45: =Solow!J42 -> 0 | N45: =Solow!K42 -> 0 | O45: =Solow!L42 -> 0 | P45: =Solow!M42 -> 0 | Q45: =Solow!N42 -> 0
L46: =Solow!I43 -> 0 | M46: =Solow!J43 -> 0 | N46: =Solow!K43 -> 0 | O46: =Solow!L43 -> 0% | P46: =Solow!M43 -> 0% | Q46: =Solow!N43 -> 0%
L47: NUEVOS VALORES DE EQUILIBRIO
L48: Y | M48: Ypc | N48: Spc | O48: dk | P48: nk | Q48: Dk
L49: =L27 -> 421,875 | M49: =L30 -> 4218.7 | N49: =L33 -> 1054.687 | O49: =M36 -> 878.906 | P49: =O36 -> 175.781 | Q49: =L39 -> 0.000
I97: l
A100: FUNCIÓN CONSUMO MONETARIASTA | Q100: CURVA DE PHILLIPS DE LARGO PLAZO | S100: 1 | T100: 1 | U100: 2 | V100: 3 | W100: 4 | X100: 5 | Z100: 2 | AA100: 3 | AB100: 4 | AC100: 5 | BQ100: CURVA DE PHILLIPS DE LARGO PLAZO | BS100: 1 | BT100: 1 | BU100: 2 | BV100: 3 | BW100: 4 | BX100: 5 | BZ100: 2 | CA100: 3 | CB100: 4 | CC100: 5
A101: Unidades | B101: ponderador | C101: Yt-o | D101: Yp | E101: Ct | F101: C/Y | G101: Yt-o | H101: Yp | I101: Ct | J101: C/Y | K101: C_linex | L101: C_liney | M101: LMLine | Q101: Unidades | R101: ponderador | S101: U | T101: P | U101: P | V101: P | W101: P | X101: P | Y101: LMLine | BQ101: Unidades | BR101: ponderador | BS101: U | BT101: P | BU101: P | BV101: P | BW101: P | BX101: P | BY101: LMLine
A102: 0 | B102: 0.30 | C102: =$D$133*B102 ->  | D102: =$B$133+($C$133*(C102-$E$133)) ->  | E102: =$B$130*D102 ->  | F102: =$B$136*($B$133/C102)+$D$136 ->  | G102: =$D$133*B102 ->  | H102: =$B$133 ->  | I102: =$B$130*H102 ->  | J102: =$B$130 ->  | K102: =$D$133 ->  | L102: =MAX($I$102,$A$130)*(A102/$A$122) ->  | M102: =MAX($F$112,$B$130)*O102 ->  | N102: =$B$130 ->  | O102: 0.9 | Q102: 0 | R102: 0.30 | S102: =$R102*$T$130 ->  | T102: =$R$130+($S$130*S102) ->  | U102: =$R$133+($S$133*S102) ->  | V102: =$R$136+($S$136*S102) ->  | W102: =$R$139+($S$139*S102) ->  | X102: =$R$142+($S$142*S102) ->  | Y102: =$T$130*(Q102/$Q$122) ->  | Z102: =$Q$133 ->  | AA102: =$Q$136 ->  | AB102: =$Q$139 ->  | AC102: =$Q$142 ->  | BQ102: 0 | BR102: 0.30 | BS102: =$R102*$T$130 ->  | BT102: =$R$130+($S$130*BS102) ->  | BU102: =$R$133+($S$133*BS102) ->  | BV102: =$R$136+($S$136*BS102) ->  | BW102: =$R$139+($S$139*BS102) ->  | BX102: =$R$142+($S$142*BS102) ->  | BY102: =$T$130*(BQ102/$Q$122) ->  | BZ102: =$Q$133 ->  | CA102: =$Q$136 ->  | CB102: =$Q$139 ->  | CC102: =$Q$142 -> 
A103: 1 | B103: =B104-$G$27 -> 1.00 | C103: =$D$133*B103 ->  | D103: =$B$133+($C$133*(C103-$E$133)) ->  | E103: =$B$130*D103 ->  | F103: =$B$136*($B$133/C103)+$D$136 ->  | G103: =$D$133*B103 ->  | H103: =$B$133 ->  | I103: =$B$130*H103 ->  | J103: =$B$130 ->  | K103: =$D$133 ->  | L103: =MAX($I$102,$A$130)*(A103/$A$122) ->  | M103: =MAX($F$112,$B$130)*O103 ->  | N103: =$B$130 ->  | O103: =O102+$O$123 -> 0.905 | Q103: 1 | R103: =R104-$G$27 -> 1.00 | S103: =$R103*$T$130 ->  | T103: =$R$130+($S$130*S103) ->  | U103: =$R$133+($S$133*S103) ->  | X103: =$R$142+($S$142*S103) ->  | Z103: =$Q$133 ->  | AA103: =$Q$136 ->  | AB103: =$Q$139 ->  | AC103: =$Q$142 ->  | BQ103: 1 | BR103: =BR104-$G$27 -> 1.00 | BS103: =$R103*$T$130 ->  | BT103: =$R$130+($S$130*BS103) ->  | BU103: =$R$133+($S$133*BS103) ->  | BX103: =$R$142+($S$142*BS103) ->  | BZ103: =$Q$133 ->  | CA103: =$Q$136 ->  | CB103: =$Q$139 ->  | CC103: =$Q$142 -> 
A104: 2 | B104: 1.00 | O104: 0.91 | Q104: 2 | R104: 1.00 | BQ104: 2 | BR104: 1.00
A105: 3 | B105: 1.00 | O105: 0.915 | Q105: 3 | R105: 1.00 | BQ105: 3 | BR105: 1.00
A106: 4 | B106: 1.00 | O106: 0.92 | Q106: 4 | R106: 1.00 | BQ106: 4 | BR106: 1.00
A107: 5 | B107: 1.00 | O107: 0.925 | Q107: 5 | R107: 1.00 | BQ107: 5 | BR107: 1.00
A108: 6 | B108: 1.00 | O108: 0.93 | Q108: 6 | R108: 1.00 | BQ108: 6 | BR108: 1.00
A109: 7 | B109: 1.00 | O109: 0.935 | Q109: 7 | R109: 1.00 | BQ109: 7 | BR109: 1.00
A110: 8 | B110: 1.00 | O110: 0.94 | Q110: 8 | R110: 1.00 | BQ110: 8 | BR110: 1.00
A111: 9 | B111: =B112-$G$27 -> 1.00 | O111: 0.945 | Q111: 9 | R111: =R112-$G$27 -> 1.00 | BQ111: 9 | BR111: =BR112-$G$27 -> 1.00
A112: 10 | B112: 1.00 | F112: =$B$136*($B$133/C112)+$D$136 ->  | O112: 0.95 | Q112: 10 | R112: 1.00 | BQ112: 10 | BR112: 1.00
A113: 11 | B113: =B112+$G$27 -> 1.00 | O113: 0.955 | Q113: 11 | R113: =R112+$G$27 -> 1.00 | BQ113: 11 | BR113: =BR112+$G$27 -> 1.00
A114: 12 | B114: 1.00 | O114: 0.96 | Q114: 12 | R114: 1.00 | BQ114: 12 | BR114: 1.00
A115: 13 | B115: 1.00 | O115: 0.965 | Q115: 13 | R115: 1.00 | BQ115: 13 | BR115: 1.00
A116: 14 | B116: 1.00 | O116: 0.97 | Q116: 14 | R116: 1.00 | BQ116: 14 | BR116: 1.00
A117: 15 | B117: 1.00 | O117: 0.975 | Q117: 15 | R117: 1.00 | BQ117: 15 | BR117: 1.00
A118: 16 | B118: 1.00 | O118: 0.98 | Q118: 16 | R118: 1.00 | BQ118: 16 | BR118: 1.00
A119: 17 | B119: 1.00 | O119: 0.985 | Q119: 17 | R119: 1.00 | BQ119: 17 | BR119: 1.00
A120: 18 | B120: 1.00 | O120: 0.99 | Q120: 18 | R120: 1.00 | BQ120: 18 | BR120: 1.00
A121: 19 | B121: 1.00 | O121: 0.995 | Q121: 19 | R121: 1.00 | BQ121: 19 | BR121: 1.00
A122: 20 | B122: 1.70 | O122: 1 | Q122: 20 | R122: 1.70 | BQ122: 20 | BR122: 1.70
O123: =(O122-O102)/20 -> 0.005
BQ125: CURVA DE PHILLIPS CORTO PLAZO 1
BQ126: p-1 | BR126: p-2 | BS126: Pe-2 | BT126: p-1 | BU126: p-2 | BV126: Pe-2 | BW126: Desviación del error
V127: CURVA DE PHILLIPS DE LARGO PLAZO | X127: 2 | Y127: 2 | Z127: 2 | AA127: 2 | AB127: 2 | AC127: 2 | AD127: 3 | AE127: 3 | AF127: 3 | AG127: 3 | AH127: 3 | AI127: 3 | AJ127: 4 | AK127: 4 | AL127: 4 | AM127: 4 | AN127: 4 | AO127: 4 | AP127: 5 | AQ127: 5 | AR127: 5 | AS127: 5 | AT127: 5 | AU127: 5 | AV127: u | AW127: u | BD127: CURVA DE PHILLIPS DE LARGO PLAZO | BF127: 2 | BG127: 2 | BH127: 2 | BI127: 2 | BJ127: 2 | BK127: 2 | BP127: 0 | BQ127: =BR127+($BS$146*(BR127-BS127)) -> 1.16% | BR127: 1.00% | BS127: 0.80% | BT127: =BU127+($BS$147*(BU127-BV127)) -> 1.20% | BU127: 1.00% | BV127: 0.80% | BW127: =BT127-BQ127 -> 0.04% | CF127: 3 | CG127: 3 | CH127: 3 | CI127: 3 | CJ127: 4 | CK127: 4 | CL127: 4 | CM127: 4 | CN127: 4 | CO127: 4 | CP127: 5 | CQ127: 5 | CR127: 5 | CS127: 5 | CT127: 5 | CU127: 5 | CV127: u | CW127: u
A128: FUNCION CONSUMO TOTAL | Q128: CURVA DE PHILLIPS CORTO PLAZO 1 | V128: Unidades | W128: ponderador | X128: U | Y128: P | Z128: LMLine | AD128: U | AE128: P | AF128: LMLine | AJ128: U | AK128: P | AL128: LMLine | AP128: U | AQ128: P | AR128: LMLine | AV128: LMLine | AX128: LMLine | AZ128: LMLine | BD128: Unidades | BE128: ponderador | BF128: AÑOS | BG128: RR DESCONTADA | BH128: RR SIN | BI128: RR DESCONTADA | BJ128: RR SIN | BP128: 1 | BQ128: 1.29% | BR128: =BQ127 -> 1.16% | BS128: 1.00% | BT128: 1.40% | BU128: =BT127 -> 1.20% | BV128: 1.00% | BW128: =BT128-BQ128 -> 0.11% | CF128: LMLine | CJ128: U | CK128: P | CL128: LMLine | CP128: U | CQ128: P | CR128: LMLine | CV128: LMLine | CX128: LMLine | CZ128: LMLine
A129: C | B129: k | C129: YP | Q129: P | R129: p0 | S129: -p1 | T129: U | V129: 0 | W129: =W130-$W$151 -> 0.00 | X129: =($R$156-Y129)/(-$S$156) ->  | Y129: =$Q156 ->  | Z129: =X$149 ->  | AA129: =Y$149*$V129 ->  | AB129: =X$149*$V129 ->  | AC129: =Y$149 ->  | AD129: =($R$159-AE129)/(-$S$159) ->  | AE129: =$Q159 ->  | AF129: =AD$149 ->  | AG129: =AE$149*$V129 ->  | AH129: =AD$149*$V129 ->  | AI129: =AE$149 ->  | AJ129: =($R$162-AK129)/(-$S$162) ->  | AK129: =$Q162 ->  | AL129: =AJ$149 ->  | AM129: =AK$149*$V129 ->  | AN129: =AJ$149*$V129 ->  | AO129: =AK$149 ->  | AP129: =($R$165-AQ129)/(-$S$165) ->  | AQ129: =$Q165 ->  | AR129: =AP$149 ->  | AS129: =AQ$149*$V129 ->  | AT129: =AP$149*$V129 ->  | AU129: =AQ$149 ->  | AV129: =$T$130 ->  | AW129: =(MAX($Y$149,$AE$149,$AK$149,$AQ$149))*$V129 ->  | AX129: =$T$130 ->  | AY129: =(MAX($Q$156,$Q$159,$Q$162,$Q$165,$Q$168))*1.2*$V129 ->  | AZ129: 0 | BA129: 0 | BD129: 0 | BE129: =BE130-$W$151 -> 0.00 | BF129: 0 | BG129: =(1+($BD$157*(BF129/$BG$150)))^(BF129/$BG$150) ->  | BH129: =(1+($BD$160*(BF129/$BG$150)))^(BF129/$BG$150) ->  | BI129: =BG129-1 ->  | BJ129: =BH129-1 ->  | BK129: =BG$149 ->  | BP129: 2 | BQ129: 1.39% | BR129: 1.29% | BS129: 1.16% | BT129: 1.60% | BU129: 1.40% | BV129: 1.20% | BW129: 0.21% | CF129: =CD$149 -> 0 | CG129: =CE$149*$V129 -> 0 | CH129: =CD$149*$V129 -> 0 | CI129: =CE$149 -> 0 | CJ129: =($R$162-CK129)/(-$S$162) ->  | CK129: =$Q162 ->  | CL129: =CJ$149 ->  | CM129: =CK$149*$V129 ->  | CN129: =CJ$149*$V129 ->  | CO129: =CK$149 ->  | CP129: =($R$165-CQ129)/(-$S$165) ->  | CQ129: =$Q165 ->  | CR129: =CP$149 ->  | CS129: =CQ$149*$V129 ->  | CT129: =CP$149*$V129 ->  | CU129: =CQ$149 ->  | CV129: =$T$130 ->  | CW129: =(MAX($Y$149,$AE$149,$AK$149,$AQ$149))*$V129 ->  | CX129: =$T$130 ->  | CY129: =(MAX($Q$156,$Q$159,$Q$162,$Q$165,$Q$168))*1.2*$V129 ->  | CZ129: 0 | DA129: 0
A130: =B130*C130 ->  | B130: =#REF! ->  | C130: =A133 ->  | Q130: =R130+(S130*T130) ->  | R130: =#REF! ->  | S130: =#REF! ->  | T130: =#REF! ->  | V130: 0.05 | W130: 0.10 | X130: =($R$156-Y130)/(-$S$156) ->  | Y130: =Y129+$Y$151 ->  | Z130: =X$149 ->  | AA130: =Y$149*$V130 ->  | AB130: =X$149*$V130 ->  | AC130: =Y$149 ->  | AD130: =($R$159-AE130)/(-$S$159) ->  | AE130: =AE129+$AE$151 ->  | AF130: =AD$149 ->  | AG130: =AE$149*$V130 ->  | AH130: =AD$149*$V130 ->  | AI130: =AE$149 ->  | AJ130: =($R$162-AK130)/(-$S$162) ->  | AK130: =AK129+$AK$151 ->  | AL130: =AJ$149 ->  | AM130: =AK$149*$V130 ->  | AN130: =AJ$149*$V130 ->  | AO130: =AK$149 ->  | AP130: =($R$165-AQ130)/(-$S$165) ->  | AQ130: =AQ129+$AQ$151 ->  | AR130: =AP$149 ->  | AS130: =AQ$149*$V130 ->  | AT130: =AP$149*$V130 ->  | AU130: =AQ$149 ->  | AY130: =(MAX($Q$156,$Q$159,$Q$162,$Q$165,$Q$168))*1.2*$V130 ->  | AZ130: =AZ129 -> 0 | BA130: 0 | BD130: 0.05 | BE130: 0.10 | BF130: 1.00 | BI130: =BG130-1 ->  | BJ130: =BH130-1 ->  | BK130: =BG$149 ->  | BP130: 3 | BQ130: 1.47% | BR130: 1.39% | BS130: 1.29% | BT130: 1.80% | BU130: 1.60% | BV130: 1.40% | BW130: 0.33% | CF130: =CD$149 -> 0 | CG130: =CE$149*$V130 -> 0 | CH130: =CD$149*$V130 -> 0 | CI130: =CE$149 -> 0 | CJ130: =($R$162-CK130)/(-$S$162) ->  | CK130: =CK129+$AK$151 ->  | CL130: =CJ$149 ->  | CM130: =CK$149*$V130 ->  | CN130: =CJ$149*$V130 ->  | CO130: =CK$149 ->  | CP130: =($R$165-CQ130)/(-$S$165) ->  | CQ130: =CQ129+$AQ$151 ->  | CR130: =CP$149 ->  | CS130: =CQ$149*$V130 ->  | CT130: =CP$149*$V130 ->  | CU130: =CQ$149 ->  | CY130: =(MAX($Q$156,$Q$159,$Q$162,$Q$165,$Q$168))*1.2*$V130 ->  | CZ130: =CZ129 -> 0 | DA130: 0
A131: FUNCION INGRESO PERMANENTE | Q131: CURVA DE PHILLIPS CORTO PLAZO 2 | V131: 0.1 | W131: 0.20 | Y131: =Y130+$Y$151 ->  | AE131: =AE130+$AE$151 ->  | AK131: =AK130+$AK$151 ->  | AQ131: =AQ130+$AQ$151 ->  | AZ131: =AZ130 -> 0 | BA131: 0 | BD131: 0.1 | BE131: 0.20 | BF131: 2.00 | BP131: 4 | BQ131: 1.54% | BR131: 1.47% | BS131: 1.39% | BT131: 2.00% | BU131: 1.80% | BV131: 1.60% | BW131: 0.46% | CF131: 0 | CG131: 0 | CH131: 0 | CI131: 0 | CK131: =CK130+$AK$151 ->  | CQ131: =CQ130+$AQ$151 ->  | CZ131: =CZ130 -> 0 | DA131: 0
A132: YP | B132: YPt-1 | C132: j | D132: Yt-0 | E132: YPt-1 | Q132: P | R132: p0 | S132: -p1 | T132: U | V132: 0.15 | W132: 0.30 | AZ132: 0 | BA132: 0 | BD132: 0.15 | BE132: 0.30 | BF132: 9.00 | BP132: 5 | BQ132: 1.59% | BR132: 1.54% | BS132: 1.47% | BT132: 2.20% | BU132: 2.00% | BV132: 1.80% | BW132: 0.61% | CF132: 0 | CG132: 0 | CH132: 0 | CI132: 0 | CZ132: 0 | DA132: 0
A133: =B133+(C133*(D133-E133)) ->  | B133: =#REF! ->  | C133: =#REF! ->  | D133: =#REF! ->  | E133: =B133 ->  | Q133: =R133+(S133*T133) ->  | R133: =R130+S148 ->  | S133: =S130 ->  | T133: =T130 ->  | V133: 0.2 | W133: 0.40 | AZ133: 0 | BA133: 0 | BD133: 0.2 | BE133: 0.40 | BF133: 12.00 | BH133: =(1+($BD$160*(BF133/$BG$150)))^(BF133/$BG$150) ->  | BP133: 6 | BQ133: 1.63% | BR133: =BQ132 -> 1.59% | BS133: 1.54% | BT133: 2.40% | BU133: 2.20% | BV133: 2.00% | BW133: 0.77% | CF133: 0 | CG133: 0 | CH133: 0 | CI133: 0 | CZ133: 0 | DA133: 0
A134: FUNCION CONSUMO MEDIO | Q134: CURVA DE PHILLIPS CORTO PLAZO 3 | V134: 0.25 | W134: 0.50 | AZ134: 0 | BA134: 0 | BD134: 0.25 | BE134: 0.50 | BF134: 15.00 | BP134: 7 | BQ134: 1.67% | BR134: 1.63% | BS134: 1.59% | BT134: 2.60% | BU134: 2.40% | BV134: 2.20% | BW134: 0.93% | CF134: 0 | CG134: 0 | CH134: 0 | CI134: 0 | CZ134: 0 | DA134: 0
A135: C/Y | B135: k(1-j) | C135: YPt-1/Yt-0 | D135: kj | Q135: P | R135: p0 | S135: -p1 | T135: U | V135: 0.3 | W135: 0.60 | AZ135: 0 | BA135: 0 | BD135: 0.3 | BE135: 0.60 | BF135: 18.00 | BP135: 8 | BQ135: 1.69% | BR135: 1.67% | BS135: 1.63% | BT135: 2.80% | BU135: 2.60% | BV135: 2.40% | BW135: 1.11% | CF135: 0 | CG135: 0 | CH135: 0 | CI135: 0 | CZ135: 0 | DA135: 0
A136: =B136*C136+D136 ->  | B136: =B130*(1-C133) ->  | C136: =E133/D133 ->  | D136: =B130*C133 ->  | Q136: =R136+(S136*T136) ->  | R136: =R133+S149 ->  | S136: =S133 ->  | T136: =T133 ->  | V136: 0.35 | W136: 0.70 | AZ136: 0 | BA136: 0 | BD136: 0.35 | BE136: 0.70 | BF136: 21.00 | BP136: 9 | BQ136: 1.71% | BR136: 1.69% | BS136: 1.67% | BT136: 3.00% | BU136: 2.80% | BV136: 2.60% | BW136: 1.29% | CF136: 0 | CG136: 0 | CH136: 0 | CI136: 0 | CZ136: 0 | DA136: 0
A137: CAMBIO DE INGRESO | Q137: CURVA DE PHILLIPS CORTO PLAZO 4 | V137: 0.4 | W137: 0.80 | AZ137: 0 | BA137: 0 | BD137: 0.4 | BE137: 0.80 | BF137: 24.00 | BP137: 10 | BQ137: 1.73% | BR137: 1.71% | BS137: 1.69% | BT137: 3.20% | BU137: 3.00% | BV137: 2.80% | BW137: 1.47% | CF137: 0 | CG137: 0 | CH137: 0 | CI137: 0 | CZ137: 0 | DA137: 0
A138: Yt-0 | B138: Yt-0 | Q138: P | R138: p0 | S138: -p1 | T138: U | V138: 0.45 | W138: =W139-$W$151 -> 0.90 | AZ138: 0 | BA138: 0 | BD138: 0.45 | BE138: =BE139-$W$151 -> 0.90 | BF138: 27.00 | BP138: 11 | BQ138: 1.75% | BR138: 1.73% | BS138: 1.71% | BT138: 3.40% | BU138: 3.20% | BV138: 3.00% | BW138: 1.65% | CF138: 0 | CG138: 0 | CH138: 0 | CI138: 0 | CZ138: 0 | DA138: 0
A139: =B139 ->  | B139: =#REF! ->  | Q139: =R139+(S139*T139) ->  | R139: =R136+S150 ->  | S139: =S136 ->  | T139: =T136 ->  | V139: 0.5 | W139: 1.00 | AZ139: 0 | BA139: 0 | BD139: 0.5 | BE139: 1.00 | BF139: 30.00 | BP139: 12 | BQ139: 1.76% | BR139: 1.75% | BS139: 1.73% | BT139: 3.60% | BU139: 3.40% | BV139: 3.20% | BW139: 1.84% | CF139: 0 | CG139: 0 | CH139: 0 | CI139: 0 | CZ139: 0 | DA139: 0
Q140: CURVA DE PHILLIPS CORTO PLAZO 5 | V140: 0.55 | W140: =W139+$W$151 -> 1.10 | AZ140: 0 | BA140: 0 | BD140: 0.55 | BE140: =BE139+$W$151 -> 1.10 | BF140: 33.00 | BP140: 13 | BQ140: 1.76% | BR140: 1.76% | BS140: 1.75% | BT140: 3.80% | BU140: 3.60% | BV140: 3.40% | BW140: 2.04% | CF140: 0 | CG140: 0 | CH140: 0 | CI140: 0 | CZ140: 0 | DA140: 0
Q141: P | R141: p0 | S141: -p1 | T141: U | V141: 0.6 | W141: =W140+$W$151 -> 1.20 | AZ141: 0 | BA141: 0 | BD141: 0.6 | BE141: =BE140+$W$151 -> 1.20 | BF141: 36.00 | BP141: 14 | BQ141: 1.77% | BR141: 1.76% | BS141: 1.76% | BT141: 4.00% | BU141: 3.80% | BV141: 3.60% | BW141: 2.23% | CF141: 0 | CG141: 0 | CH141: 0 | CI141: 0 | CZ141: 0 | DA141: 0
Q142: =R142+(S142*T142) ->  | R142: =R139+S151 ->  | S142: =S139 ->  | T142: =T139 ->  | V142: 0.65 | W142: =W141+$W$151 -> 1.30 | AZ142: 0 | BA142: 0 | BD142: 0.65 | BE142: =BE141+$W$151 -> 1.30 | BF142: 39.00 | BP142: 15 | BQ142: 1.78% | BR142: 1.77% | BS142: 1.76% | BT142: 4.20% | BU142: 4.00% | BV142: 3.80% | BW142: 2.42% | CF142: 0 | CG142: 0 | CH142: 0 | CI142: 0 | CZ142: 0 | DA142: 0
Q143: OFERTA DE DINERO | V143: 0.7 | W143: 1.40 | AZ143: 0 | BA143: 0 | BD143: 0.7 | BE143: 1.40 | BF143: 42.00 | BP143: 16 | BQ143: 1.78% | BR143: 1.78% | BS143: 1.77% | BT143: 4.40% | BU143: 4.20% | BV143: 4.00% | BW143: 2.62% | CF143: 0 | CG143: 0 | CH143: 0 | CI143: 0 | CZ143: 0 | DA143: 0
V144: 0.75 | W144: 1.50 | AZ144: 0 | BA144: 0 | BD144: 0.75 | BE144: 1.50 | BF144: 45.00 | CF144: 0 | CG144: 0 | CH144: 0 | CI144: 0 | CZ144: 0 | DA144: 0
Q145: POLÍTICA MONETARIA (VARIACIÓN PORCENTUAL) | V145: 0.8 | W145: 1.60 | AZ145: 0 | BA145: 0 | BD145: 0.8 | BE145: 1.60 | BF145: 48.00 | CF145: 0 | CG145: 0 | CH145: 0 | CI145: 0 | CZ145: 0 | DA145: 0
R146: Ms | S146: Ms | V146: 0.85 | W146: 1.70 | AZ146: 0 | BA146: 0 | BD146: 0.85 | BE146: 1.70 | BF146: 51.00 | BR146: j | BS146: 0.80 | CF146: 0 | CG146: 0 | CH146: 0 | CI146: 0 | CZ146: 0 | DA146: 0
Q147: Periodo 1 | R147: 0% | S147: 0% | V147: 0.9 | W147: 1.80 | AZ147: 0 | BA147: 0 | BD147: 0.9 | BE147: 1.80 | BF147: 54.00 | BR147: j | BS147: 1.00 | CF147: 0 | CG147: 0 | CH147: 0 | CI147: 0 | CZ147: 0 | DA147: 0
Q148: Periodo 2 | R148: =#REF! ->  | S148: 0% | V148: 0.95 | W148: 1.90 | AZ148: 0 | BA148: 0 | BD148: 0.95 | BE148: 1.90 | BF148: 57.00 | CF148: 0 | CG148: 0 | CH148: 0 | CI148: 0 | CZ148: 0 | DA148: 0
Q149: Periodo 3 | R149: =#REF! ->  | S149: 0% | V149: 1 | W149: 2.00 | Y149: =$Q159 ->  | AE149: =$Q162 ->  | AJ149: =($R$162-AK149)/(-$S$162) ->  | AK149: =$Q165 ->  | AQ149: =$Q168 ->  | AZ149: 0 | BA149: 0 | BD149: 1 | BE149: 2.00 | BF149: 60.00 | CF149: 0 | CG149: 0 | CH149: 0 | CI149: 0 | CJ149: =($R$162-CK149)/(-$S$162) ->  | CK149: =$Q165 ->  | CQ149: =$Q168 ->  | CZ149: 0 | DA149: 0
Q150: Periodo 4 | R150: =#REF! ->  | S150: 0% | BG150: 12
Q151: Periodo 5 | R151: =#REF! ->  | S151: 0% | W151: 0.1 | Y151: =(Y149-Y129)/20 ->  | AE151: =(AE149-AE129)/20 ->  | AK151: =(AK149-AK129)/20 ->  | AQ151: =(AQ149-AQ129)/20 ->  | CK151: =(CK149-CK129)/20 ->  | CQ151: =(CQ149-CQ129)/20 -> 
R152: desplaza dobre c de phillips | S152: ajuste expectativas
Q154: CURVA DE PHILLIPS CORTO PLAZO 1
Q155: P | R155: p0 | S155: -p1 | T155: U | BD155: TASA DE INTERÉS REAL
Q156: =R156+(S156*T156) ->  | R156: =R130 ->  | S156: =S130 ->  | T156: =T130 ->  | BD156: rr | BE156: rn | BF156: pe
Q157: CURVA DE PHILLIPS CORTO PLAZO 2 | BD157: =(BE157-BF157)/(1+BF157) ->  | BE157: =#REF! ->  | BF157: =#REF! -> 
Q158: P | R158: p0 | S158: -p1 | T158: U | BD158: TASA DE INTERÉS REAL
Q159: =R159+(S159*T159) ->  | R159: =R156+R148 ->  | S159: =S156 ->  | T159: =T156 ->  | BD159: rr | BE159: rn | BF159: pe
Q160: CURVA DE PHILLIPS CORTO PLAZO 3 | BD160: =(BE160-BF160) ->  | BE160: =BE157 ->  | BF160: =BF157 -> 
Q161: P | R161: p0 | S161: -p1 | T161: U
Q162: =R162+(S162*T162) ->  | R162: =R159+R149 ->  | S162: =S159 ->  | T162: =T159 -> 
Q163: CURVA DE PHILLIPS CORTO PLAZO 4
Q164: P | R164: p0 | S164: -p1 | T164: U
Q165: =R165+(S165*T165) ->  | R165: =R162+R150 ->  | S165: =S162 ->  | T165: =T162 -> 
Q166: CURVA DE PHILLIPS CORTO PLAZO 5
Q167: P | R167: p0 | S167: -p1 | T167: U
Q168: =R168+(S168*T168) ->  | R168: =R165+R151 ->  | S168: =S165 ->  | T168: =T165 -> 
C200: caso 1 | D200: caso 2
A201: Y | B201: =meade!B5 -> Y | C201: =C202*(C203^C205)*(C204^C206) -> 100.0 | D201: =D202*(D203^D205)*(D204^D206) -> 100.0
A202: A | B202: =meade!B6 -> A | C202: =meade!C6 -> 1.0 | D202: =meade!D6 -> 1.0
A203: N | B203: =meade!B7 -> N | C203: =meade!C7 -> 100.0 | D203: =meade!D7 -> 100.0
A204: K | B204: =meade!B8 -> K | C204: =meade!C8 -> 100.0 | D204: =meade!D8 -> 100.0
A205: Elasticidad producto del trabajo (g) | B205: =meade!B9 -> g | C205: =meade!C9 -> 0.5 | D205: =meade!D9 -> 0.5
A206: Elasticidad producto del capital (1-g) | B206: =meade!B10 -> 1-g | C206: =1-C205 -> 0.5 | D206: =1-D205 -> 0.5
A208: W = PMN | B208: =meade!B12 -> W = PMN | C208: =C205*C202*((C204/C203)^C206) -> 0.5 | D208: =D205*D202*((D204/D203)^D206) -> 0.5
A209: WN | B209: =meade!B13 -> WN | C209: =C208*C203 -> 50.0 | D209: =D208*D203 -> 50.0
A210: (WN)/Y | B210: =meade!B14 -> (WN)/Y | C210: =C209/C201 -> 0.5 | D210: =D209/D201 -> 0.5
A212: P = PMK | B212: =meade!B16 -> P = PMK | C212: =C206*C202*((C203/C204)^C205) -> 0.5 | D212: =D206*D202*((D203/D204)^D205) -> 0.5
A213: PK | B213: =meade!B17 -> PK | C213: =C212*C204 -> 50.0 | D213: =D212*D204 -> 50.0
A214: (PK)/Y | B214: =meade!B18 -> (PK)/Y | C214: =C213/C201 -> 0.5 | D214: =D213/D201 -> 0.5
A216: (WN)/Y | B216: =B210 -> (WN)/Y | C216: =C210 -> 0.5 | D216: =D210 -> 0.5
A217: n | B217: =meade!B21 -> n | C217: =meade!C21 -> 0.050 | D217: =meade!D21 -> 0.050
A218: ((WN)/Y)*n | B218: =meade!B22 -> ((WN)/Y)*n | C218: =C216*C217 -> 0.025 | D218: =D216*D217 -> 0.025
A219: (PK)/Y | B219: =meade!B23 -> (PK)/Y | C219: =C214 -> 0.5 | D219: =D214 -> 0.5
A220: k | B220: =meade!B24 -> k | C220: =meade!C24 -> 0.070 | D220: =meade!D24 -> 0.070
A221: ((PK)/Y)*k | B221: =meade!B25 -> ((PK)/Y)*k | C221: =C220*C219 -> 0.035 | D221: =D220*D219 -> 0.035
A222: fi/Y | B222: =meade!B26 -> fi/Y | C222: =meade!C26 -> 0.040 | D222: =meade!D26 -> 0.040
A223: y | B223: =meade!B27 -> y | C223: =C218+C221+C222 -> 0.100 | D223: =D218+D221+D222 -> 0.100
A225: y-n | B225: =meade!B29 -> y-n | C225: =C223-C217 -> 0.050 | D225: =D223-D217 -> 0.050
B236: smith 1 | C236: smith 2 | D236: ricardo 1 | E236: ricardo 2
B237: =smith!C10 -> 0.5 | C237: =smith!D10 -> 0.5 | D237: =ricardo!C10 -> 0.5 | E237: =ricardo!D10 -> 0.5
B238: =(1/B237)*0.999 -> 1.998 | C238: =(1/C237)*0.999 -> 1.998 | D238: =(1/D237)*0.999 -> 1.998 | E238: =(1/E237)*0.999 -> 1.998

Sheet Inicio creexo (hidden)
A25: Descargue la versión Kindle
K33: Miguel Cervantes Jiménez

Sheet Solow
A1: MODELOS DE CRECIMIENTO EXÓGENO
A2: Modelo de Solow
B3: DEMANDA AGREGADA
B4: Y | C4: C | D4: I | I4: VARIABLES | J4: ORIGINAL | K4: CHOQUE | L4: VAR ABS | M4: VAR REL
B5: ='Oculto creexo'!A27 -> 421,875 | C5: =B5*(1-C19) -> 316,406 | D5: =D10*B19 -> 105,469 | I5: Y | J5: =B10 -> 421,874.9 | K5: =I24 -> 421,874.9 | L5: =K5-J5 -> 0 | M5: =(K5-J5)/J5 -> 0.0%
B6: =B5/$B$5 -> 100% | C6: =C5/$B$5 -> 75% | D6: =D5/$B$5 -> 25% | I6: A | J6: =C10 -> 45.0 | K6: =J27 -> 45.0 | L6: =K6-J6 -> 0 | M6: =(K6-J6)/J6 -> 0.0%
I7: N | J7: =D10 -> 100.0 | K7: =K24 -> 100.0 | L7: 0 | M7: 0.0%
B8: INGRESO | I8: K | J8: =E10 -> 878,905.8 | K8: =L24 -> 878,905.8 | L8: 0 | M8: 0.0%
B9: Y | C9: A | D9: N | E9: K | F9: a | G9: b | I9: Ypc | J9: =B14 -> 4,218.7 | K9: =I27 -> 4,218.7 | L9: 0 | M9: 0.0%
B10: =C10*D10^(F10)*E10^(G10) -> 421,875 | C10: =C14 -> 45 | D10: 100.00 | E10: =E14*D10 -> 878,906 | F10: =F14 -> 0.5 | G10: =G14 -> 0.5 | I10: kpc | J10: =E14 -> 8,789.1 | K10: =L27 -> 8,789.1 | L10: 0 | M10: 0.0%
D11: Inserte los datos correspondientes | I11: Spc | J11: =B19 -> 1,054.7 | K11: =I30 -> 1,054.7 | L11: 0 | M11: 0.0%
B12: INGRESO POR TRABAJADOR EMPLEADO | I12: s0 | J12: =C19 -> 0.25 | K12: =J30 -> 0.25 | L12: 0 | M12: =(K12-J12) -> 0
B13: Ypc | C13: A | D13: N | E13: kpc | F13: a | G13: b | I13: d | J13: =B23 -> 0.10 | K13: =I33 -> 0.10 | L13: 0 | M13: =(K13-J13) -> 0
B14: =C14*E14^(G14) -> 4,219 | C14: 45 | D14: 1.00 | E14: 8,789.06 | F14: 0.5 | G14: =1-F14 -> 0.5 | I14: dk | J14: =C23 -> 878.9 | K14: =J33 -> 878.9 | L14: 0 | M14: 0
I15: n | J15: =D23 -> 0.02 | K15: =D23 -> 0.02 | L15: 0 | M15: =(K15-J15) -> 0
I16: k(d+n) | J16: =D27 -> 1,054.7 | K16: =K36 -> 1,054.7 | L16: 0 | M16: 0.0%
B17: AHORRO POR TRABAJDO EMPLEADO | J17: Esta seccion muestra los efectos de la Política Económica
B18: Spc | C18: s0 | D18: Ypc
B19: =C19*D19 -> 1,055 | C19: 0.25 | D19: =B14 -> 4,219
B21: DEPRECIACIÓN Y CRECIMIENTO POBLACIONAL
B22: d | C22: dk | D22: n | E22: nk
B23: 0.10 | C23: =B23*E14 -> 878.91 | D23: 0.02 | E23: =D23*E14 -> 175.78 | I23: Y | J23: A | K23: N | L23: K | M23: a | N23: b
I24: =J24*K24^(M24)*L24^(N24) -> 421874.8823 | J24: =J27 -> 45 | K24: =D10 -> 100.00 | L24: =L27*K24 -> 878905.7597 | M24: =M27 -> 0.5 | N24: =N27 -> 0.5
B25: ESTADO ESTACIONARIO
B26: Dk | C26: sYpc | D26: k(d+n) | I26: Ypc | J26: A | K26: N | L26: kpc | M26: a | N26: b
B27: =C27-D27 -> 0.00 | C27: =C19*D19 -> 1,054.69 | D27: =C23+E23 -> 1054.69 | I27: =J27*L27^(N27) -> 4218.748823 | J27: =E33 -> 45 | K27: 1 | L27: 8,789.06 | M27: =F14 -> 0.5 | N27: =1-M27 -> 0.5
I29: Spc | J29: s0 | K29: Ypc
B30: POLÍTICA ECONÓMICA | I30: =J30*K30 -> 1054.687206 | J30: =B33 -> 0.25 | K30: =I27 -> 4218.748823
B31: VARIABLES EXOGENAS
B32: s0 | C32: d0 | D32: n | E32: A | I32: d | J32: dk | K32: n | L32: nk
B33: =C19+B34 -> 0.25 | C33: =B23+C34 -> 0.10 | D33: =D23+D34 -> 0.02 | E33: =C14*(1+E34) -> 45.00 | I33: =C33 -> 0.10 | J33: =I33*L27 -> 878.9057597 | K33: =D33 -> 0.02 | L33: =K33*L27 -> 175.7811519
B34: 0 | C34: 0 | D34: 0 | E34: 0.0%
I35: Dk | J35: sYpc | K35: k(d+n)
B36: NUEVOS VALORES DE EQUILIBRIO | I36: =J36-K36 -> 0.00 | J36: =J30*K30 -> 1054.687206 | K36: =J33+L33 -> 1054.686912
B37: Y | C37: Ypc | D37: Spc | E37: dk | F37: nk | G37: Dk
B38: =I24 -> 421,875 | C38: =I27 -> 4218.7 | D38: =I30 -> 1054.687 | E38: =J33 -> 878.906 | F38: =L33 -> 175.781 | G38: =I36 -> 0.000
B40: Títulos
B41: Resultados
B42: Insertar datos
B43: Valores de equilibrio
B44: Política económica

Sheet meade (hidden)
A1: CRECIMIENTO EXÓGENO
A2: MEADE
C4: caso 1 | D4: caso 2
B5: Y | C5: ='Oculto creexo'!C201 -> 100.0 | D5: ='Oculto creexo'!D201 -> 100.0
B6: A | C6: 1.0 | D6: =C6 -> 1.0
B7: N | C7: 100.0 | D7: =C7 -> 100.0
B8: K | C8: 100.0 | D8: =C8 -> 100.0
B9: g | C9: 0.5 | D9: =C9 -> 0.5
B10: 1-g | C10: ='Oculto creexo'!C206 -> 0.5 | D10: ='Oculto creexo'!D206 -> 0.5
B12: W = PMN | C12: ='Oculto creexo'!C208 -> 0.5 | D12: ='Oculto creexo'!D208 -> 0.5
B13: WN | C13: ='Oculto creexo'!C209 -> 50.0 | D13: ='Oculto creexo'!D209 -> 50.0
B14: (WN)/Y | C14: ='Oculto creexo'!C210 -> 0.5 | D14: ='Oculto creexo'!D210 -> 0.5
B16: P = PMK | C16: ='Oculto creexo'!C212 -> 0.5 | D16: ='Oculto creexo'!D212 -> 0.5
B17: PK | C17: ='Oculto creexo'!C213 -> 50.0 | D17: ='Oculto creexo'!D213 -> 50.0
B18: (PK)/Y | C18: ='Oculto creexo'!C214 -> 0.5 | D18: ='Oculto creexo'!D214 -> 0.5
B20: ='Oculto creexo'!B210 -> (WN)/Y | C20: ='Oculto creexo'!C216 -> 0.5 | D20: ='Oculto creexo'!D210 -> 0.5
B21: n | C21: 5.0% | D21: =C21 -> 5.0%
B22: ((WN)/Y)*n | C22: ='Oculto creexo'!C218 -> 2.5% | D22: ='Oculto creexo'!D218 -> 2.5%
B23: (PK)/Y | C23: ='Oculto creexo'!C219 -> 0.50 | D23: ='Oculto creexo'!D219 -> 0.50
B24: k | C24: 7.0% | D24: =C24 -> 7.0%
B25: ((PK)/Y)*k | C25: ='Oculto creexo'!C221 -> 3.5% | D25: ='Oculto creexo'!D221 -> 3.5%
B26: fi/Y | C26: 4.0% | D26: =C26 -> 4.0%
B27: y | C27: ='Oculto creexo'!C223 -> 10.0% | D27: ='Oculto creexo'!D223 -> 10.0%
B29: y-n | C29: ='Oculto creexo'!C225 -> 5.0% | D29: ='Oculto creexo'!D225 -> 5.0%
B32: Títulos
B33: Resultados
B34: Insertar datos
B35: Valores de equilibrio

Sheet smith (hidden)
A1: CRECIMIENTO EXÓGENO
A2: ADAM SMITH
C5: caso 1 | D5: caso 2
B6: Y | C6: =C7*(C8^C10*C9^C11) -> 100.0 | D6: =D7*(D8^D10*D9^D11) -> 100.0
B7: A | C7: 1.0 | D7: =C7 -> 1.0
B8: N | C8: 100.0 | D8: =C8 -> 100.0
B9: K | C9: 100.0 | D9: =C9 -> 100.0
B10: a | C10: 0.5 | D10: =C10 -> 0.5
B11: b | C11: =1-C10 -> 0.5 | D11: =1-D10 -> 0.5
B13: a = aportación del trabajo | C13: =C10*C7*((C9/C8)^C11) -> 0.5 | D13: =D10*D7*((D9/D8)^D11) -> 0.5
B14: b = aportación del capital | C14: =C11*C7*((C8/C9)^C10) -> 0.5 | D14: =D11*D7*((D8/D9)^D10) -> 0.5
B15: g1 | C15: 0.5 | D15: =C15 -> 0.5
B16: g2 | C16: 0.5 | D16: =C16 -> 0.5
B17: DK | C17: 5.0 | D17: =C17 -> 5.0
B19: DY | C19: =(((C13*C15)+C14)*C17)/(1-(C13*C16)) -> 5.0 | D19: =(((D13*D15)+D14)*D17)/(1-(D13*D16)) -> 5.0
B20: y = DY/Y | C20: =C19/C6 -> 5.0% | D20: =D19/D6 -> 5.0%
B22: Títulos
B23: Resultados
B24: Insertar datos
B25: Valores de equilibrio

Sheet ricardo (hidden)
A1: CRECIMIENTO EXÓGENO
A2: DAVID RICARDO
C5: caso 1 | D5: caso 2
B6: Y | C6: =C7*(C8^C10*C9^C11) -> 100.0 | D6: =D7*(D8^D10*D9^D11) -> 100.0
B7: A | C7: 1.0 | D7: =C7 -> 1.0
B8: N | C8: 100.0 | D8: =C8 -> 100.0
B9: K | C9: 100.0 | D9: =C9 -> 100.0
B10: a | C10: 0.5 | D10: =C10 -> 0.5
B11: 1-a | C11: =1-C10 -> 0.5 | D11: =1-D10 -> 0.5
B13: a = aportación del trabajo | C13: =C10*C7*((C9/C8)^C11) -> 0.5 | D13: =D10*D7*((D9/D8)^D11) -> 0.5
B14: b = aportación del capital | C14: =C11*C7*((C8/C9)^C10) -> 0.5 | D14: =D11*D7*((D8/D9)^D10) -> 0.5
B15: g1 | C15: 0.5 | D15: =C15 -> 0.5
B16: g2 | C16: 0.5 | D16: =C16 -> 0.5
B17: DK | C17: 5.0 | D17: =C17 -> 5.0
B18: j | C18: 3.0% | D18: =C18 -> 3.0%
B20: DY | C20: =(((C13*C15)+C14)*C17)/(1-(C13*C16)) -> 5.000 | D20: =(((D13*D15)+D14)*D17)/(1-(D13*D16)) -> 5.000
B21: y = DY/Y | C21: =C20/C6 -> 5.0% | D21: =D20/D6 -> 5.0%
B22: y = DY/Y+j | C22: =C21+C18 -> 8.0% | D22: =D21+D18 -> 8.0%
B25: Títulos
B26: Resultados | G26: =F26 -> 0
B27: Insertar datos
B28: Valores de equilibrio
B37: DAVID RICARDO
C44: caso 1 | D44: caso 2
B45: DY | C45: =(((C46*C48)+C47)*C50)/(1-(C46*C49))+C57 -> 24.58868984 | D45: =(((D46*D48)+D47)*D50)/(1-(D46*D49))+D57 -> 22.98709964
B46: alfa | C46: =C55*C52*((C54/C53)^C56) -> 0.51 | D46: =D55*D52*((D54/D53)^D56) -> 0.51
B47: beta | C47: =C56*C52*((C53/C54)^C55) -> 1.497 | D47: =D56*D52*((D53/D54)^D55) -> 1.497
B48: g1 | C48: 0.5 | D48: 0.3 | E48: 3
B49: g2 | C49: 0.5 | D49: =C49 -> 0.5
B50: DK | C50: 10 | D50: 9 | E50: 2
B51: Y | C51: =C52*(C53^C55)*(C54^C56) -> 256.616304 | D51: =D52*(D53^D55)*(D54^D56) -> 256.616304
B52: A | C52: 2 | D52: =C52 -> 2
B53: N | C53: 150 | D53: =C53 -> 150
B54: K | C54: 120 | D54: =C54 -> 120
B55: gama | C55: 0.3 | D55: =C55 -> 0.3
B56: 1-gamna | C56: =1-C55 -> 0.7 | D56: =1-D55 -> 0.7
B57: fi | C57: 1 | D57: 3 | E57: 1
B58: dy/y | C58: =C45/C51 -> 10% | D58: =D45/D51 -> 9%
